fUSD/lending_fUSD_20250623
["ID","MTS","AMOUNT","RATE_DAILY","PERIOD"]
[367257055,1750720256181,-490.0,0.00022191,2]
[367257056,1750720256191,-490.0,0.00022191,2]
[367257057,1750720256200,-490.0,0.00022191,2]
[367257058,1750720256210,-151.0,0.00022191,7]
[367257059,1750720256220,-490.0,0.00022191,2]
[367257060,1750720256230,-151.0,0.00022191,7]
[367257061,1750720256240,-151.0,0.00022191,7]
[367257062,1750720256250,-490.0,0.00022191,2]
[367257063,1750720256259,-151.0,0.00022191,7]
[367257064,1750720256269,-151.0,0.00022191,7]
[367257065,1750720256280,-151.0,0.00022191,7]
[367257066,1750720256289,-490.0,0.00022191,2]
[367257067,1750720256299,-500.0,0.00022191,2]
[367257068,1750720256308,-589.97,0.00022191,2]
[367257069,1750720256317,-490.0,0.00022191,2]
[367257070,1750720256327,-490.0,0.00022191,2]
[367257071,1750720256337,-490.0,0.00022191,2]
[367257072,1750720256346,-490.0,0.00022191,2]
[367257073,1750720256356,-490.0,0.00022191,2]
[367257074,1750720256366,-490.0,0.00022191,2]
[367257075,1750720256375,-500.0,0.00022191,2]
[367257076,1750720256385,-490.0,0.00022191,2]
[367257077,1750720256394,-490.0,0.00022191,2]
[367257078,1750720256404,-743.05,0.00022191,2]
[367257079,1750720256414,-321.28762072,0.00022191,2]
[367257080,1750720256423,-490.0,0.00022191,2]
[367257081,1750720256432,-490.0,0.00022191,2]
[367257082,1750720256442,-490.0,0.00022191,2]
[367257083,1750720256451,-538.01,0.00022191,2]
[367257084,1750720256461,-693.79,0.00022191,2]
[367257085,1750720256471,-490.0,0.00022191,2]
[367257086,1750720256481,-490.0,0.00022191,2]
[367257087,1750720256490,-490.0,0.00022191,2]
[367257088,1750720256499,-490.0,0.00022191,2]
[367257089,1750720256509,-490.0,0.00022191,2]
[367257090,1750720256518,-490.0,0.00022191,2]
[367257091,1750720256527,-490.0,0.00022191,2]
[367257092,1750720256537,-793.15,0.00022191,2]
[367257093,1750720256546,-490.0,0.00022191,2]
[367257094,1750720256556,-608.3,0.00022191,2]
[367257095,1750720256566,-490.0,0.00022191,2]
[367257096,1750720256576,-250.0,0.00022191,2]
[367257097,1750720256586,-610.99,0.00022191,2]
[367257098,1750720256595,-490.0,0.00022191,2]
[367257099,1750720256605,-490.0,0.00022191,2]
[367257100,1750720256615,-490.0,0.00022191,2]
[367257101,1750720256624,-698.55,0.00022191,2]
[367257102,1750720256633,-500.02,0.00022191,2]
[367257103,1750720256643,-490.0,0.00022191,2]
[367257104,1750720256653,-812.47,0.00022191,2]
[367257105,1750720256662,-917.55,0.00022191,2]
[367257106,1750720256672,-490.0,0.00022191,2]
[367257107,1750720256682,-490.0,0.00022191,2]
[367257108,1750720256691,-490.0,0.00022191,2]
[367257109,1750720256701,-637.003955,0.00022191,2]
[367257110,1750720256711,-490.0,0.00022191,2]
[367257111,1750720256721,-274.85,0.00022191,2]
[367257112,1750720256730,-490.0,0.00022191,2]
[367257113,1750720256740,-759.24,0.00022191,2]
[367257114,1750720256750,-490.0,0.00022191,2]
[367257115,1750720256760,-545.58,0.00022191,2]
[367257116,1750720256770,-490.0,0.00022191,2]
[367257117,1750720256779,-840.98,0.00022191,2]
[367257118,1750720256789,-388.27061297,0.00022191,2]
[367257119,1750720256798,-490.0,0.00022191,2]
[367257120,1750720256808,-490.0,0.00022191,2]
[367257121,1750720256818,-490.0,0.00022191,2]
[367257122,1750720256828,-1083.75,0.00022191,2]
[367257123,1750720256838,-490.0,0.00022191,2]
[367257124,1750720256847,-490.0,0.00022191,2]
[367257125,1750720256857,-676.91,0.00022191,2]
[367257126,1750720256866,-490.0,0.00022191,2]
[367257127,1750720256876,-490.0,0.00022191,2]
[367257128,1750720256886,-490.0,0.00022191,2]
[367257129,1750720256895,-827.47,0.00022191,2]
[367257130,1750720256905,-490.0,0.00022191,2]
[367257131,1750720256915,-554.99,0.00022191,2]
[367257132,1750720256926,-628.72,0.00022191,2]
[367257133,1750720256942,-500.92,0.00022191,2]
[367257134,1750720256952,-490.0,0.00022191,2]
[367257135,1750720256961,-490.0,0.00022191,2]
[367257136,1750720256971,-1200.9,0.00022191,2]
[367257137,1750720256982,-490.0,0.00022191,2]
[367257138,1750720256992,-490.0,0.00022191,2]
[367257139,1750720257002,-151.0,0.00022191,7]
[367257140,1750720257012,-574.5,0.00022191,2]
[367257141,1750720257022,-151.0,0.00022191,7]
[367257142,1750720257031,-151.0,0.00022191,7]
[367257143,1750720257041,-490.0,0.00022191,2]
[367257144,1750720257051,-622.34,0.00022191,2]
[367257145,1750720257061,-490.0,0.00022191,2]
[367257146,1750720257071,-490.0,0.00022191,2]
[367257147,1750720257080,-151.0,0.00022191,7]
[367257148,1750720257090,-151.0,0.00022191,7]
[367257149,1750720257099,-490.0,0.00022191,2]
[367257150,1750720257109,-151.0,0.00022191,7]
[367257151,1750720257119,-435.71318864,0.00022191,2]
[367257152,1750720257128,-538.21,0.00022191,2]
[367257153,1750720257137,-971.79,0.00022191,2]
[367257154,1750720257147,-490.0,0.00022191,2]
[367257155,1750720257157,-1028.56,0.00022191,2]
[367257156,1750720257166,-490.0,0.00022191,2]
[367257157,1750720257176,-490.0,0.00022191,2]
[367257158,1750720257185,-490.0,0.00022191,2]
[367257159,1750720257194,-490.0,0.00022191,2]
[367257160,1750720257204,-490.0,0.00022191,2]
[367257161,1750720257213,-490.0,0.00022191,2]
[367257162,1750720257223,-545.47,0.00022191,2]
[367257163,1750720257232,-572.54062851,0.00022191,2]
[367257164,1750720257241,-1263.38,0.00022191,2]
[367257165,1750720257252,-505.37,0.00022191,2]
[367257166,1750720257262,-610.98,0.00022191,2]
[367257167,1750720257271,-490.0,0.00022191,2]
[367257168,1750720257282,-688.47,0.00022191,2]
[367257169,1750720257291,-816.17,0.00022191,2]
[367257170,1750720257301,-490.0,0.00022191,2]
[367257171,1750720257310,-490.0,0.00022191,2]
[367257172,1750720257319,-511.19,0.00022191,2]
[367257173,1750720257328,-490.0,0.00022191,2]
[367257174,1750720257338,-756.92,0.00022191,2]
[367257175,1750720257348,-490.0,0.00022191,2]
[367257176,1750720257359,-1422.61,0.00022191,2]
[367257177,1750720257370,-490.0,0.00022191,2]
[367257178,1750720257382,-712.06,0.00022191,2]
[367257179,1750720257392,-544.78,0.00022191,2]
[367257180,1750720257401,-490.0,0.00022191,2]
[367257181,1750720257411,-797.95,0.00022191,2]
[367257182,1750720257421,-798.42,0.00022191,2]
[367257183,1750720257430,-490.0,0.00022191,2]
[367257184,1750720257440,-490.0,0.00022191,2]
[367257185,1750720257450,-490.0,0.00022191,2]
[367257186,1750720257461,-490.0,0.00022191,2]
[367257187,1750720257472,-490.0,0.00022191,2]
[367257188,1750720257482,-490.0,0.00022191,2]
[367257189,1750720257493,-948.64,0.00022191,2]
[367257190,1750720257504,-723.12,0.00022191,2]
[367257191,1750720257514,-619.48838617,0.00022191,2]
[367257192,1750720257523,-490.0,0.00022191,2]
[367257193,1750720257532,-490.0,0.00022191,2]
[367257194,1750720257541,-490.0,0.00022191,2]
[367257195,1750720257550,-490.0,0.00022191,2]
[367257196,1750720257559,-151.0,0.00022191,7]
[367257197,1750720257569,-151.0,0.00022191,7]
[367257198,1750720257578,-209.134452,0.00022191,7]
[367257199,1750720257587,-490.0,0.00022191,2]
[367257200,1750720257596,-540.74364543,0.00022191,2]
[367257201,1750720257606,-490.0,0.00022191,2]
[367257202,1750720257615,-262.28427075,0.00022191,2]
[367257203,1750720257624,-547.15,0.00022191,2]
[367257204,1750720257633,-490.0,0.00022191,2]
[367257205,1750720257643,-490.0,0.00022191,2]
[367257206,1750720257652,-490.0,0.00022191,2]
[367257207,1750720257662,-664.8,0.00022191,2]
[367257208,1750720257671,-490.0,0.00022191,2]
[367257209,1750720257680,-438.00209622,0.00022191,2]
[367257210,1750720257689,-490.0,0.00022191,2]
[367257211,1750720257781,-490.0,0.00022191,2]
[367257212,1750720257791,-490.0,0.00022191,2]
[367257213,1750720257800,-494.01,0.00022191,2]
[367257214,1750720257809,-490.0,0.00022191,2]
[367257215,1750720257818,-765.15,0.00022191,2]
[367257216,1750720257828,-498.85,0.00022191,2]
[367257217,1750720257837,-490.0,0.00022191,2]
[367257218,1750720257847,-490.0,0.00022191,2]
[367257219,1750720257856,-490.0,0.00022191,2]
[367257220,1750720257865,-490.0,0.00022191,2]
[367257221,1750720257874,-490.0,0.00022191,2]
[367257222,1750720257883,-490.0,0.00022191,2]
[367257223,1750720257893,-490.0,0.00022191,2]
[367257224,1750720257902,-490.0,0.00022191,2]
[367257225,1750720257911,-490.0,0.00022191,2]
[367257226,1750720257920,-603.64,0.00022191,2]
[367257227,1750720257929,-490.0,0.00022191,2]
[367257228,1750720257942,-490.0,0.00022191,2]
[367257229,1750720257952,-1024.07,0.00022191,2]
[367257230,1750720257961,-490.0,0.00022191,2]
[367257231,1750720257971,-1147.26,0.00022191,2]
[367257232,1750720257980,-490.0,0.00022191,2]
[367257233,1750720257990,-490.0,0.00022191,2]
[367257234,1750720257999,-490.0,0.00022191,2]
[367257235,1750720258008,-490.0,0.00022191,2]
[367257236,1750720258017,-1174.91,0.00022191,2]
[367257237,1750720258027,-1295.03,0.00022191,2]
[367257238,1750720258036,-490.0,0.00022191,2]
[367257239,1750720258045,-490.0,0.00022191,2]
[367257240,1750720258055,-490.0,0.00022191,2]
[367257241,1750720258064,-490.0,0.00022191,2]
[367257242,1750720258074,-490.0,0.00022191,2]
[367257243,1750720258083,-490.0,0.00022191,2]
[367257244,1750720258092,-1105.76,0.00022191,2]
[367257245,1750720258102,-490.0,0.00022191,2]
[367257246,1750720258111,-490.0,0.00022191,2]
[367257247,1750720258120,-850.78,0.00022191,2]
[367257248,1750720258129,-490.0,0.00022191,2]
[367257249,1750720258139,-490.0,0.00022191,2]
[367257250,1750720258148,-444.35675687,0.00022191,2]
[367257251,1750720258157,-490.0,0.00022191,2]
[367257252,1750720258166,-584.71,0.00022191,2]
[367257253,1750720258175,-490.0,0.00022191,2]
[367257254,1750720258184,-490.0,0.00022191,2]
[367257255,1750720258193,-490.0,0.00022191,2]
[367257256,1750720258203,-602.16,0.00022191,2]
[367257257,1750720258212,-490.0,0.00022191,2]
[367257258,1750720258221,-490.0,0.00022191,2]
[367257259,1750720258231,-490.0,0.00022191,2]
[367257260,1750720258241,-490.0,0.00022191,2]
[367257261,1750720258250,-670.97,0.00022191,2]
[367257262,1750720258260,-1125.48,0.00022191,2]
[367257263,1750720258269,-490.0,0.00022191,2]
[367257264,1750720258278,-1015.98,0.00022191,2]
[367257265,1750720258288,-490.0,0.00022191,2]
[367257266,1750720258297,-490.0,0.00022191,2]
[367257267,1750720258306,-896.78,0.00022191,2]
[367257268,1750720258315,-490.0,0.00022191,2]
[367257269,1750720258324,-490.0,0.00022191,2]
[367257270,1750720258333,-151.0,0.00022191,7]
[367257271,1750720258342,-991.79,0.00022191,2]
[367257272,1750720258351,-490.0,0.00022191,2]
[367257273,1750720258360,-490.0,0.00022191,2]
[367257274,1750720258369,-490.0,0.00022191,2]
[367257275,1750720258379,-617.71,0.00022191,2]
[367257276,1750720258388,-490.0,0.00022191,2]
[367257277,1750720258398,-490.0,0.00022191,2]
[367257278,1750720258407,-663.55,0.00022191,2]
[367257279,1750720258416,-490.0,0.00022191,2]
[367257280,1750720258426,-490.0,0.00022191,2]
[367257281,1750720258435,-753.16,0.00022191,2]
[367257282,1750720258444,-1169.56,0.00022191,2]
[367257283,1750720258453,-490.0,0.00022191,2]
[367257284,1750720258462,-490.0,0.00022191,2]
[367257285,1750720258471,-490.0,0.00022191,2]
[367257286,1750720258480,-490.0,0.00022191,2]
[367257287,1750720258489,-798.85,0.00022191,2]
[367257288,1750720258499,-816.02,0.00022191,2]
[367257289,1750720258507,-490.0,0.00022191,2]
[367257290,1750720258517,-490.0,0.00022191,2]
[367257291,1750720258526,-1226.43,0.00022191,2]
[367257292,1750720258535,-490.0,0.00022191,2]
[367257293,1750720258544,-1692.03,0.00022191,2]
[367257294,1750720258553,-490.0,0.00022191,2]
[367257295,1750720258562,-743.41,0.00022191,2]
[367257296,1750720258571,-490.0,0.00022191,2]
[367257297,1750720258581,-490.0,0.00022191,2]
[367257298,1750720258589,-490.0,0.00022191,2]
[367257299,1750720258598,-490.0,0.00022191,2]
[367257300,1750720258608,-1035.5,0.00022191,2]
[367257301,1750720258617,-1428.24,0.00022191,2]
[367257302,1750720258626,-490.0,0.00022191,2]
[367257303,1750720258635,-490.0,0.00022191,2]
[367257304,1750720258644,-578.07,0.00022191,2]
[367257305,1750720258654,-490.0,0.00022191,2]
[367257306,1750720258662,-490.0,0.00022191,2]
[367257307,1750720258672,-490.0,0.00022191,2]
[367257308,1750720258681,-1560.27,0.00022191,2]
[367257309,1750720258690,-490.0,0.00022191,2]
[367257310,1750720258699,-490.0,0.00022191,2]
[367257311,1750720258708,-490.0,0.00022191,2]
[367257312,1750720258717,-1138.31,0.00022191,2]
[367257313,1750720258726,-490.0,0.00022191,2]
[367257314,1750720258735,-490.0,0.00022191,2]
[367257315,1750720258744,-490.0,0.00022191,2]
[367257316,1750720258753,-490.0,0.00022191,2]
[367257317,1750720258762,-490.0,0.00022191,2]
[367257318,1750720258771,-490.0,0.00022191,2]
[367257319,1750720258780,-490.0,0.00022191,2]
[367257320,1750720258789,-490.0,0.00022191,2]
[367257321,1750720258799,-490.0,0.00022191,2]
[367257322,1750720258808,-610.23,0.00022191,2]
[367257323,1750720258817,-490.0,0.00022191,2]
[367257324,1750720258826,-490.0,0.00022191,2]
[367257325,1750720258836,-490.0,0.00022191,2]
[367257326,1750720258845,-1540.72,0.00022191,2]
[367257327,1750720258856,-490.0,0.00022191,2]
[367257328,1750720258866,-490.0,0.00022191,2]
[367257329,1750720258875,-956.42,0.00022191,2]
[367257330,1750720258886,-490.0,0.00022191,2]
[367257331,1750720258896,-490.0,0.00022191,2]
[367257332,1750720258905,-490.0,0.00022191,2]
[367257333,1750720258914,-755.88,0.00022191,2]
[367257334,1750720258923,-490.0,0.00022191,2]
[367257335,1750720258934,-490.0,0.00022191,2]
[367257336,1750720258945,-329.05918355,0.00022191,2]
[367257337,1750720258956,-490.0,0.00022191,2]
[367257338,1750720258965,-490.0,0.00022191,2]
[367257339,1750720258978,-510.44,0.00022191,2]
[367257340,1750720258987,-490.0,0.00022191,2]
[367257341,1750720258997,-490.0,0.00022191,2]
[367257342,1750720259007,-490.0,0.00022191,2]
[367257343,1750720259019,-643.85,0.00022191,2]
[367257344,1750720259029,-599.74,0.00022191,2]
[367257345,1750720259038,-490.0,0.00022191,2]
[367257346,1750720259051,-490.0,0.00022191,2]
[367257347,1750720259060,-710.51,0.00022191,2]
[367257348,1750720259070,-490.0,0.00022191,2]
[367257349,1750720259081,-490.0,0.00022191,2]
[367257350,1750720259091,-490.0,0.00022191,2]
[367257351,1750720259102,-490.0,0.00022191,2]
[367257352,1750720259113,-490.0,0.00022191,2]
[367257353,1750720259122,-749.42,0.00022191,2]
[367257354,1750720259134,-430.20901644,0.00022191,2]
[367257355,1750720259143,-269.71591176,0.00022191,2]
[367257356,1750720259152,-490.0,0.00022191,2]
[367257357,1750720259162,-490.0,0.00022191,2]
[367257358,1750720259171,-917.23,0.00022191,2]
[367257359,1750720259181,-490.0,0.00022191,2]
[367257360,1750720259190,-599.32,0.00022191,2]
[367257361,1750720259200,-490.0,0.00022191,2]
[367257362,1750720259210,-466.86887206,0.00022191,2]
[367257363,1750720259220,-588.92870351,0.00022191,2]
[367257364,1750720259229,-720.89,0.00022191,2]
[367257365,1750720259240,-490.0,0.00022191,2]
[367257366,1750720259249,-664.28,0.00022191,2]
[367257367,1750720259258,-490.0,0.00022191,2]
[367257368,1750720259267,-1380.1,0.00022191,2]
[367257369,1750720259276,-490.0,0.00022191,2]
[367257370,1750720259286,-912.94,0.00022191,2]
[367257371,1750720259296,-490.0,0.00022191,2]
[367257372,1750720259305,-490.0,0.00022191,2]
[367257373,1750720259314,-490.0,0.00022191,2]
[367257374,1750720259323,-490.0,0.00022191,2]
[367257375,1750720259332,-490.0,0.00022191,2]
[367257376,1750720259341,-583.16,0.00022191,2]
[367257377,1750720259350,-490.0,0.00022191,2]
[367257378,1750720259359,-1214.44,0.00022191,2]
[367257379,1750720259368,-490.0,0.00022191,2]
[367257380,1750720259377,-490.0,0.00022191,2]
[367257381,1750720259387,-1030.72,0.00022191,2]
[367257382,1750720259395,-602.99,0.00022191,2]
[367257383,1750720259404,-490.0,0.00022191,2]
[367257384,1750720259413,-490.0,0.00022191,2]
[367257385,1750720259422,-490.0,0.00022191,2]
[367257386,1750720259431,-410.60499891,0.00022191,2]
[367257387,1750720259440,-379.13299139,0.00022191,2]
[367257388,1750720259450,-592.75,0.00022191,2]
[367257389,1750720259460,-917.93,0.00022191,2]
[367257390,1750720259470,-490.0,0.00022191,2]
[367257391,1750720259481,-490.0,0.00022191,2]
[367257392,1750720259492,-940.21,0.00022191,2]
[367257393,1750720259503,-490.0,0.00022191,2]
[367257394,1750720259514,-490.0,0.00022191,2]
[367257395,1750720259523,-490.0,0.00022191,2]
[367257396,1750720259532,-1267.09,0.00022191,2]
[367257397,1750720259541,-490.0,0.00022191,2]
[367257398,1750720259551,-490.0,0.00022191,2]
[367257399,1750720259560,-761.58,0.00022191,2]
[367257400,1750720259568,-490.0,0.00022191,2]
[367257401,1750720259577,-490.0,0.00022191,2]
[367257402,1750720259587,-1017.08,0.00022191,2]
[367257403,1750720259595,-613.73,0.00022191,2]
[367257404,1750720259604,-490.0,0.00022191,2]
[367257405,1750720259614,-694.19,0.00022191,2]
[367257406,1750720259623,-490.0,0.00022191,2]
[367257407,1750720259631,-1000.0,0.00022191,2]
[367257408,1750720259642,-490.0,0.00022191,2]
[367257409,1750720259651,-897.84,0.00022191,2]
[367257410,1750720259660,-151.0,0.00022191,7]
[367257411,1750720259669,-151.0,0.00022191,7]
[367257412,1750720259678,-283.31115311,0.00022191,2]
[367257413,1750720259688,-982.43,0.00022191,2]
[367257414,1750720259697,-490.0,0.00022191,2]
[367257415,1750720259707,-490.0,0.00022191,2]
[367257416,1750720259716,-760.55,0.00022191,2]
[367257417,1750720259725,-490.0,0.00022191,2]
[367257418,1750720259734,-1819.88,0.00022191,2]
[367257419,1750720259743,-151.0,0.00022191,7]
[367257420,1750720259752,-151.0,0.00022191,7]
[367257421,1750720259761,-490.0,0.00022191,2]
[367257422,1750720259771,-669.64,0.00022191,2]
[367257423,1750720259780,-490.0,0.00022191,2]
[367257424,1750720259789,-490.0,0.00022191,2]
[367257425,1750720259799,-490.0,0.00022191,2]
[367257426,1750720259808,-490.0,0.00022191,2]
[367257427,1750720259817,-490.0,0.00022191,2]
[367257428,1750720259826,-490.0,0.00022191,2]
[367257429,1750720259835,-490.0,0.00022191,2]
[367257430,1750720259845,-644.61,0.00022191,2]
[367257431,1750720259854,-490.0,0.00022191,2]
[367257432,1750720259863,-490.0,0.00022191,2]
[367257433,1750720259872,-490.0,0.00022191,2]
[367257434,1750720259882,-1824.55,0.00022191,2]
[367257435,1750720259892,-718.38,0.00022191,2]
[367257436,1750720259902,-392.25368363,0.00022191,2]
[367257437,1750720259911,-151.0,0.00022191,7]
[367257438,1750720259920,-151.0,0.00022191,7]
[367257439,1750720259930,-536.46,0.00022191,2]
[367257440,1750720259944,-963.57,0.00022191,2]
[367257441,1750720259954,-490.0,0.00022191,2]
[367257442,1750720259964,-490.0,0.00022191,2]
[367257443,1750720259975,-515.5300264,0.00022191,2]
[367257444,1750720259984,-2293.31,0.00022191,2]
[367257445,1750720259995,-490.0,0.00022191,2]
[367257446,1750720260005,-1489.68,0.00022191,2]
[367257447,1750720260014,-646.41,0.00022191,2]
[367257448,1750720260024,-490.0,0.00022191,2]
[367257449,1750720260035,-490.0,0.00022191,2]
[367257450,1750720260044,-1394.63,0.00022191,2]
[367257451,1750720260054,-2805.91,0.00022191,2]
[367257452,1750720260063,-2616.36,0.00022191,2]
[367257453,1750720260074,-490.0,0.00022191,2]
[367257454,1750720260083,-490.0,0.00022191,2]
[367257455,1750720260093,-638.23,0.00022191,2]
[367257456,1750720260102,-490.0,0.00022191,2]
[367257457,1750720260113,-497.04,0.00022191,2]
[367257458,1750720260122,-831.27,0.00022191,2]
[367257459,1750720260131,-769.28,0.00022191,2]
[367257460,1750720260140,-3452.29,0.00022191,2]
[367257461,1750720260150,-581.2,0.00022191,2]
[367257462,1750720260159,-9399.59,0.00022191,2]
[367257463,1750720260168,-710.04,0.00022191,2]
[367257464,1750720260177,-490.0,0.00022191,2]
[367257465,1750720260187,-490.0,0.00022191,2]
[367257466,1750720260196,-1061.59,0.00022191,2]
[367257467,1750720260205,-490.0,0.00022191,2]
[367257468,1750720260214,-947.34,0.00022191,2]
[367257469,1750720260223,-1026.38,0.00022191,2]
[367257470,1750720260233,-490.0,0.00022191,2]
[367257471,1750720260242,-792.98,0.00022191,2]
[367257472,1750720260251,-726.73,0.00022191,2]
[367257473,1750720260261,-1802.18,0.00022191,2]
[367257474,1750720260270,-480.56103054,0.00022191,2]
[367257475,1750720260279,-1184.26,0.00022191,2]
[367257476,1750720260288,-1150.8,0.00022191,2]
[367257477,1750720260297,-337.87338665,0.00022191,2]
[367257478,1750720260306,-930.74,0.00022191,2]
[367257479,1750720260316,-605.1,0.00022191,2]
[367257480,1750720260325,-863.73,0.00022191,2]
[367257481,1750720260334,-4136.86,0.00022191,2]
[367257482,1750720260343,-490.0,0.00022191,2]
[367257483,1750720260352,-538.91,0.00022191,2]
[367257484,1750720260361,-657.58,0.00022191,2]
[367257485,1750720260370,-2102.05,0.00022191,2]
[367257486,1750720260379,-914.31,0.00022191,2]
[367257487,1750720260389,-870.44,0.00022191,2]
[367257488,1750720260398,-490.0,0.00022191,2]
[367257489,1750720260407,-2161.05,0.00022191,2]
[367257490,1750720260417,-598.29,0.00022191,2]
[367257491,1750720260427,-1160.51,0.00022191,2]
[367257492,1750720260437,-1075.55,0.00022191,2]
[367257493,1750720260447,-5318.79,0.00022191,2]
[367257494,1750720260459,-490.0,0.00022191,2]
[367257495,1750720260470,-4925.64,0.00022191,2]
[367257496,1750720260480,-690.98,0.00022191,2]
[367257497,1750720260489,-2160.42,0.00022191,2]
[367257498,1750720260499,-582.65,0.00022191,2]
[367257499,1750720260509,-490.0,0.00022191,2]
[367257500,1750720260519,-490.0,0.00022191,2]
[367257501,1750720260528,-596.44,0.00022191,2]
[367257502,1750720260537,-151.0,0.00022191,7]
[367257503,1750720260546,-151.0,0.00022191,7]
[367257504,1750720260556,-449.44989991,0.00022191,2]
[367257505,1750720260566,-490.0,0.00022191,2]
[367257506,1750720260575,-2330.86,0.00022191,2]
[367257507,1750720260585,-490.0,0.00022191,2]
[367257508,1750720260595,-490.0,0.00022191,2]
[367257509,1750720260604,-490.0,0.00022191,2]
[367257510,1750720260614,-1061.28,0.00022191,2]
[367257511,1750720260623,-3640.93,0.00022191,2]
[367257512,1750720260633,-713.85,0.00022191,2]
[367257513,1750720260643,-490.0,0.00022191,2]
[367257514,1750720260652,-546.51,0.00022191,2]
[367257515,1750720260662,-490.0,0.00022191,2]
[367257516,1750720260671,-1131.4,0.00022191,2]
[367257517,1750720260681,-913.07,0.00022191,2]
[367257518,1750720260690,-622.0,0.00022191,2]
[367257519,1750720260700,-490.0,0.00022191,2]
[367257520,1750720260709,-888.12,0.00022191,2]
[367257521,1750720260718,-964.98,0.00022191,2]
[367257522,1750720260728,-503.26,0.00022191,2]
[367257523,1750720260737,-490.0,0.00022191,2]
[367257524,1750720260747,-654.36,0.00022191,2]
[367257525,1750720260756,-490.0,0.00022191,2]
[367257526,1750720260766,-917.79,0.00022191,2]
[367257527,1750720260775,-2848.4,0.00022191,2]
[367257528,1750720260784,-248.9688355,0.00022191,2]
[367257529,1750720260794,-804.65,0.00022191,2]
[367257530,1750720260803,-595.99,0.00022191,2]
[367257531,1750720260812,-490.0,0.00022191,2]
[367257532,1750720260821,-1492.92,0.00022191,2]
[367257533,1750720260831,-490.0,0.00022191,2]
[367257534,1750720260840,-1166.2,0.00022191,2]
[367257535,1750720260850,-490.0,0.00022191,2]
[367257536,1750720260859,-1703.71,0.00022191,2]
[367257537,1750720260868,-827.46,0.00022191,2]
[367257538,1750720260878,-490.0,0.00022191,2]
[367257539,1750720260898,-1312.94,0.00022191,2]
[367257540,1750720260918,-1989.89,0.00022191,2]
[367257541,1750720260931,-490.0,0.00022191,2]
[367257542,1750720260946,-870.99,0.00022191,2]
[367257543,1750720260956,-965.17,0.00022191,2]
[367257544,1750720260965,-1651.42,0.00022191,2]
[367257545,1750720260975,-637.24,0.00022191,2]
[367257546,1750720260984,-635.65,0.00022191,2]
[367257547,1750720260994,-583.61430982,0.00022191,2]
[367257548,1750720261003,-490.0,0.00022191,2]
[367257549,1750720261013,-785.95,0.00022191,2]
[367257550,1750720261023,-674.96,0.00022191,2]
[367257551,1750720261032,-1518.67,0.00022191,2]
[367257552,1750720261042,-490.0,0.00022191,2]
[367257553,1750720261053,-625.98,0.00022191,2]
[367257554,1750720261063,-3091.78,0.00022191,2]